Cogmind - Beta 16.1 @@@ ROGUE MODE // 2026.02.10 @ 18:27:42 Player: Megaknight51 Result: Destroyed by UE-BAI(R) with Subdweller Machine Gun Performance ------------- Evolutions (0) 0 Regions Visited (2) 400 Robots Destroyed (27) 135 Value Destroyed (440) 440 Prototype IDs (0) 0 Alien Tech Used (0) 0 Bonus (0) 0 TOTAL SCORE: 975 Bonus ------- None Cogmind --------- Core Integrity 0/250 Matter 279/300 Energy 100/100 System Corruption 0% Temperature Cool (0) Movement Rolling (105) Ox1 Location -10/Subcaves Parts ------- > --- POWER (1) -------- (None) > --- PROPULSION (2) --- Armored Wheel Armored Wheel > --- UTILITY (2) ------ High-capacity Storage Unit > --- WEAPON (2) ------- Small Laser Light Assault Rifle > --- INVENTORY (20) --- Ion Engine Armored Wheel Armored Wheel Small Storage Unit High-capacity Matter Pod (37) Sensor Array Signal Interpreter Improved Terrain Scanner Seismic Detector Core Shielding Core Shielding Shield Generator Hacking Suite Field Recycling Unit (0) EM Pulse Gun Small Laser Small Laser Grenade Launcher Mining Laser Peak State ------------ > --- POWER ------------ Light Ion Engine > --- PROPULSION ------- Armored Wheel Armored Wheel > --- UTILITY ---------- High-capacity Storage Unit Shield Generator > --- WEAPON ----------- Assault Rifle Light Assault Rifle > --- INVENTORY -------- Ion Engine Ion Engine Armored Wheel Armored Wheel Small Storage Unit High-capacity Matter Pod Sensor Array Signal Interpreter Improved Terrain Scanner Seismic Detector Core Shielding Core Shielding Hacking Suite Field Recycling Unit EM Pulse Gun Small Laser Small Laser Small Laser Grenade Launcher Mining Laser [Rating: 12] Favorites ----------- Power Light Ion Engine Engine Light Ion Engine Propulsion Light Treads Treads Light Treads Wheel Armored Wheel Utility Huge Storage Unit Device Shield Generator Storage Huge Storage Unit Protection Core Shielding Weapon Assault Rifle Energy Gun Small Laser Ballistic Gun Assault Rifle Special Weapon Mining Laser Build | -11 -10 -10 ------- Run | Yrd Mat Sub Slots Evolved . | . . . Power . | . . . Propulsion . | . . . Utility . | . . . Weapon . | . . . Parts Attached 19 | 6 12 1 Power 4 | 1 3 . Engine 4 | 1 3 . Core . | . . . Reactor . | . . . Propulsion 4 | 2 2 . Treads 2 | 2 . . Leg . | . . . Wheel 2 | . 2 . Hover . | . . . Flight . | . . . Utility 6 | 1 5 . Device 1 | . 1 . Storage 4 | 1 3 . Processor . | . . . Hackware . | . . . Protection 1 | . 1 . Artifact . | . . . Weapon 5 | 2 2 1 Energy Gun 1 | . . 1 Energy Cannon . | . . . Ballistic Gun 3 | 2 1 . Ballistic Cannon . | . . . Launcher . | . . . Special Weapon 1 | . 1 . Impact Weapon . | . . . Slashing Weapon . | . . . Piercing Weapon . | . . . Special Melee Weapon . | . . . Unidentified Prototypes . | . . . Parts Lost 8 | . 5 3 Power 3 | . 2 1 Propulsion 2 | . 2 . Utility 1 | . . 1 Weapon 2 | . 1 1 Highest Loss Streak 3 | . 2 3 To Critical Strikes . | . . . Average Backups 15 | 2 16 19 Power 1 | . 1 1 Propulsion . | . . 2 Utility 6 | . 6 11 Weapon 7 | 1 7 5 Tool/Special . | . . . Unused Backups 19 | . 3 16 Power 1 | . . 1 Propulsion 2 | . . 2 Utility 10 | . 1 9 Weapon 6 | . 2 4 Tool/Special . | . . . Average Slot Usage (%) 74 | . 74 96 Engine 13 | . 13 14 Treads 4 | . 4 . Wheel 3 | . 3 28 Storage 14 | . 14 14 Protection 8 | . 8 . Ballistic Gun 27 | . 27 24 Peak Build Rating 12 | 6 12 12 Average Rating 7 | 5 7 11 On Entrance 6 | . 6 12 Avg Prop Armor Cover (%) . | . . . Naked Turns . | . . . Heaviest Build 107 | 11 107 50 Greatest Support 40 | 40 40 24 Greatest Overweight (x) 28 | . 28 2 Average Overweight (x) 8 | . 8 2 Largest Inventory Capacity 25 | 8 25 20 Average Capacity 23 | 7 23 20 Most Carried 21 | 5 21 20 Average Carried 15 | 2 16 19 Final Capacity 20 | 8 20 20 Final Carried 20 | 5 20 19 Class Distribution -------------------- 100% | Mutant Dominant Class ---------------- Mutant | -10/Materials Mutant | -10/Subcaves Resources | -11 -10 -10 ----------- Run | Yrd Mat Sub Matter Collected 834 | 320 462 52 Remotely . | . . . Salvage Created 859 | 179 628 52 Parts 54 | 17 34 3 Haulers Intercepted . | . . . Recyclers Shooed 1 | 1 . . Parts Field Recycled . | . . . Retrieved Matter . | . . . Parts Self-Destructed . | . . . Prevented . | . . . Parts Restored . | . . . Kills | -11 -10 -10 ------- Run | Yrd Mat Sub Combat Hostiles Destroyed 14 | . 13 1 Guns 14 | . 13 1 Classes Destroyed 9 | 3 5 1 Worker 2 | 1 1 . Builder 1 | . 1 . Tunneler 5 | 5 . . Recycler 3 | 1 2 . Operator 1 | . 1 . Watcher 1 | . 1 . Swarmer 6 | . 6 . Grunt 7 | . 7 . Subdweller 1 | . . 1 Best Kill Streak 5 | 3 5 1 Combat Bots Only 3 | . 3 1 Max Kills in Single Turn 1 | 1 1 1 Gunslinging . | . . . Exploded . | . . . Melee . | . . . Uniques/NPCs Destroyed . | . . . Combat | -11 -10 -10 -------- Run | Yrd Mat Sub Hostile Shots Fired 126 | . 106 20 Missed 23 | . 18 5 Hits 103 | . 88 15 Projectile 103 | . 88 15 Critical Strikes 2 | . 2 . Damage Taken 1157 | . 874 283 Core 256 | . 181 75 Absorbed by Shields 59 | . 3 56 Redirected to Shielding 6 | . 6 . Core Remaining (%) 100 | 100 . . Volleys Fired 99 | 20 66 13 Largest 2 | 2 2 2 Hottest 100 | 40 100 60 Shots Fired 194 | 40 128 26 Gun 193 | 40 127 26 Cannon . | . . . Launcher . | . . . Special 1 | . 1 . Kinetic 187 | 40 127 20 Thermal 7 | . 1 6 Explosive . | . . . Electromagnetic . | . . . Robot Hit Streak 16 | 5 16 6 Robot Miss Streak 5 | 4 5 1 Penetration Max . | . . . Secondary Targets . | . . . Shots Hit Robots 113 | 25 69 19 Core Hits 47 | 11 30 6 Critical Kills . | . . . Critical Parts Destroyed 3 | 1 2 . Critical Strikes 3 | 1 2 . Destroy 3 | 1 2 . Melee Attacks . | . . . Impact . | . . . Slashing . | . . . Piercing . | . . . Sneak Attacks . | . . . Combat Hostiles . | . . . Follow-up Attacks . | . . . Damage Inflicted 1422 | 305 942 175 Guns 1354 | 305 874 175 Cannons . | . . . Explosions . | . . . Melee . | . . . Ramming 68 | . 68 . Kinetic 1310 | 305 874 131 Thermal 44 | . . 44 Explosive . | . . . Electromagnetic . | . . . Impact . | . . . Slashing . | . . . Piercing . | . . . Highest Corruption . | . . . Average Corruption . | . . . Corruption Purged . | . . . Corruption Blocked . | . . . Overload Shots . | . . . Overflow Damage . | . . . Projectiles . | . . . Explosions . | . . . Melee . | . . . Knockbacks . | . . . Impact . | . . . Kinetic . | . . . Secondary . | . . . Self-Inflicted Damage 31 | . 31 . Shots . | . . . Rammed 7 | . 7 . Targets Rammed 7 | . 7 . Kicked . | . . . Crushed . | . . . Highest Temperature 20 | . 20 . Average Temperature 7 | . 7 . Received Heat Transfer 273 | . 273 . Siege Activations . | . . . Martial Activations . | . . . Shielding Activations . | . . . Robots Disrupted . | . . . Combat Hostiles . | . . . Robots Corrupted . | . . . Combat Hostiles . | . . . Parts Fried . | . . . Impact Corruptions . | . . . Robots Melted . | . . . Combat Hostiles . | . . . Parts Melted . | . . . Heat Transferred 100 | . . 100 Parts Sabotaged . | . . . Parts Stolen . | . . . Parts Stripped . | . . . Power Chain Reactions . | . . . Alert | -11 -10 -10 ------- Run | Yrd Mat Sub Maximum Alert Level . | . . . Low Security (%) 100 | 100 100 . Level 1 . | . . . Level 2 . | . . . Level 3 . | . . . Level 4 . | . . . Level 5 . | . . . High Security . | . . . Max Security . | . . . Peak Influence 153 | 15 153 . Initial . | . . . Average 24 | 1 25 . Influence Increases 617 | 35 582 . Destroy 0b10 Robot/C 260 | . 260 . Destroy 0b10 Robot/NC 65 | 35 30 . Destroy Leader 52 | . 52 . Successful Hack 12 | . 12 . Disable Machine 15 | . 15 . Destroy Structure 3 | . 3 . Lose Combat Pursuer 210 | . 210 . Influence Decreases 598 | 35 429 134 Entered New Map 74 | . . 74 Time Decay 448 | 35 383 30 Lost Part 76 | . 46 30 Squads Dispatched 3 | . 3 . Investigation 2 | . 2 . Extermination . | . . . Reinforcement 1 | . 1 . Assault . | . . . Garrison . | . . . Intercept . | . . . Searches Triggered . | . . . Construction Impeded . | . . . Haulers Reinforced . | . . . Active Scanning Responses . | . . . Cargo Convoy Interrupts . | . . . Stealth | -11 -10 -10 --------- Run | Yrd Mat Sub Distress Signals 4 | . 4 . Communications Jammed . | . . . Distress Signals . | . . . Times Spotted 42 | . 40 2 Peak Tracking Total 4 | . 4 2 Tactical Retreats 13 | . 13 . Traps | -11 -10 -10 ------- Run | Yrd Mat Sub Traps Triggered 1 | . 1 . Indirectly . | . . . Trap Hack Attempts . | . . . Triggered . | . . . Disarmed . | . . . Reprogrammed . | . . . Reused . | . . . Traps Extracted . | . . . Installed . | . . . Triggered . | . . . Machines | -11 -10 -10 ---------- Run | Yrd Mat Sub Machines Disabled 1 | . 1 . Max in Single Turn 1 | . 1 . Machines Repaired . | . . . Machines Dismantled . | . . . Machines Sabotaged . | . . . Overloaded Fab Kills . | . . . Hacking | -11 -10 -10 --------- Run | Yrd Mat Sub Machines Accessed 4 | . 4 . Terminals 4 | . 4 . Fabricators . | . . . Repair Stations . | . . . Recycling Units . | . . . Scanalyzers . | . . . Garrison Access . | . . . Total Hacks 10 | . 10 . Successful 2 | . 2 . Failed 8 | . 8 . Catastrophic 2 | . 2 . Database Lockouts . | . . . Manual 10 | . 10 . Terminals 10 | . 10 . Fabricators . | . . . Repair Stations . | . . . Recycling Units . | . . . Scanalyzers . | . . . Garrison Access . | . . . Terminal Hacks 2 | . 2 . Robot Analysis 2 | . 2 . Fabricator Hacks . | . . . Repair Station Hacks . | . . . Recycling Unit Hacks . | . . . Scanalyzer . | . . . Garrison Access Hacks . | . . . Unauthorized Hacks . | . . . Terminals . | . . . Fabricators . | . . . Repair Stations . | . . . Recycling Units . | . . . Scanalyzers . | . . . Garrison Access . | . . . Data Cores Recovered . | . . . Used . | . . . Hacking Detections 4 | . 4 . Full Trace Events 1 | . 1 . Feedback Events . | . . . Feedback Blocked . | . . . Robot Schematics Acquired . | . . . Robots Built . | . . . Authchips . | . . . Time . | . . . Total Robot Build Rating . | . . . Part Schematics Acquired . | . . . Parts Built . | . . . Authchips . | . . . Time . | . . . Total Part Build Rating . | . . . Part Studies Acquired . | . . . Parts Repaired . | . . . Time . | . . . Parts Recycled . | . . . Recycled Matter . | . . . Retrieved Matter . | . . . Retrieved Components . | . . . Parts Scanalyzed . | . . . Part Schematics Acquired . | . . . Parts Damaged . | . . . Bothacking | -11 -10 -10 ------------ Run | Yrd Mat Sub Used RIF Installer . | . . . Robots Hacked . | . . . Non-combat . | . . . Combat . | . . . Robot Hacks Applied . | . . . Relay Couplers Released . | . . . Fabnet Peak Effective % . | . . . Robots Rewired . | . . . Allies Hacked . | . . . Hacks Repelled . | . . . Allies | -11 -10 -10 -------- Run | Yrd Mat Sub Total Allies . | . . . Largest Group . | . . . Highest-Rated Group . | . . . Highest-Rated Ally . | . . . Total Orders . | . . . Ally Attacks . | . . . Total Damage . | . . . Kills . | . . . Allies Corrupted . | . . . Allies Melted . | . . . Intel | -11 -10 -10 ------- Run | Yrd Mat Sub Active Infowar (turns) . | . . . Robot Analysis Total 2 | . 2 . Derelict Logs Recovered . | . . . Drone Launches . | . . . Drone Recoveries . | . . . Exploration | -11 -10 -10 ------------- Run | Yrd Mat Sub Turns Passed 6238 | 227 5936 75 Spaces Moved 1099 | 74 1001 24 Core 275 | 3 272 . Treads 441 | 71 370 . Legs . | . . . Wheels 383 | . 359 24 Hover . | . . . Flight . | . . . Fastest Speed 50 | 50 105 120 Average Speed 506 | 155 542 120 Slowest Speed 1450 | 160 1450 120 Overloaded Moves . | . . . Propulsion Burnouts . | . . . Robots Hopped . | . . . Potential Cave-ins . | . . . Cave-ins Triggered . | . . . Exploration Rate (%) 34 | 4 98 2 Regions Visited 2 Branch Regions 1 Pre-discovered Areas . | . . . Known Exits Taken . | . . . Unknown Exits Taken 2 | 1 1 . Scrap Searched . | . . . Spaces Dug . | . . . Terrain Destroyed . | . . . Melee . | . . . Projectile . | . . . AOE . | . . . Terrain Rammed . | . . . Walls Destroyed . | . . . Machines Disabled . | . . . Actions | -11 -10 -10 --------- Run | Yrd Mat Sub Total 1559 | 147 1366 46 Wait 302 | 43 251 8 Move 1097 | 73 1000 24 Hop . | . . . Pick Up 26 | 5 21 . Fast Attach 11 | 6 5 . Attach 5 | . 4 1 Detach 2 | . 2 . Swap 5 | . 5 . Drop 5 | . 5 . Fire 99 | 20 66 13 Melee . | . . . Ram 6 | . 6 . Kick . | . . . Crush 1 | . 1 . Escape Stasis . | . . . Rewire . | . . . Trap . | . . . Miscellaneous . | . . . Route ------- -11/Scrapyard -10/Materials (discovered 5 exits: [*Mat x3] / [*Min] / [*Sub]) -10/Subcaves History --------- Turn | Location | Event 26 | -11/Scrapyard | Discovered new exit (range 16) 228 | -11/Scrapyard | Entered Materials 289 | -10/Materials | Discovered new exit (range 15) 305 | -10/Materials | Build established: Mutant 1066 | -10/Materials | Core integrity fell below 50% 1253 | -10/Materials | Discovered new exit (range 10) 5786 | -10/Materials | Discovered new exit (range 16) 6145 | -10/Materials | Discovered new exit (range 11) 6152 | -10/Materials | Discovered new exit (range 11) 6164 | -10/Materials | Entered Subcaves 6165 | -10/Subcaves | Approached by a straggling Scientist 6212 | -10/Subcaves | Core integrity fell below 20% 6239 | -10/Subcaves | Destroyed by UE-BAI(R) with Subdweller Machine Gun Last Messages --------------- 06090_ Acquired 17 matter. 06117_ Slammed into K-01 Serf. 06145_ EXIT=FOUND 06150_ Slammed into K-01 Serf. 06152_ EXIT=FOUND LOCATION=UNKNOWN AMBIENT_HEAT=-10 GOAL=ESCAPE 06165_ 2W-5U9(c): "Thank the algorithms! I was beginning to lose hope I'd never make it past all the Subs lurking out here." 06168_ 2W-5U9(c): "Hey, let me tag along and I can get us both out of this nasty situation. At least I think I can... The group I got separated from was talking about a shortcut back to the UFD." 06203_ JK-6ZN(R) destroyed. 06206_ Acquired 52 matter. 2W-5U9(c): "I think it's somewhere south of here" 06219_ Assault Rifle destroyed. 06221_ Shield Generator destroyed. 06235_ Ion Engine destroyed. 06238_ Subatomizers dissect the Sub. Shrapnel Launcher. Map ----- +----------------------------------------------------+ | ????????????????????????????????????????????? | | ????????????????????????????????????????????? | | ????????????????????????????????????????????? | | ????????????????????????????????????????????? | | ????????????????????????????????????????????? | | ????????????????????????????????????????????? | | ????????????????????????????????????????????? | | ????????????????????????????????????????????? | | ????????????????????????????????????????????? | | ????????????????????????????????????????????? | | ????????????????????????????????????????????? | | ????????????????????????????????????????????? | | ????????????????????????????????????????????? | | ???????????????????????????###??????????????? | | ??????????????????????????## ##?????????????? | | ?????????????????????????## #?????????????? | | ??????????????????????#### #?????????????? | | ?????????????????????## ##?????????????? | | ?????????????#####???# #??????????????? | | ???????????? ??## #??????????????? | | ???????????? ??### #??????????????? | | ??????????? ### c#??????????????? | | ??????????? ##?????????????? | | ??????????? #?????????????? | | ??????????? ## # ] ####?????????????? | | ???????????????????# #*@= #???????????????? | | ???????????????????## ?##! #???????????????? | | ????????????????????##?# ##???????????????? | | ???????????????????????# R #???????????????? | | ???????????????????????## ##???????????????? | | ???????????????????????? ????????????????? | | ??????????????????????? ???????????????? | | ?????????????????????? ???????????????? | | ?????????????????????? #??????????????? | | ????????????????????? " #??????????????? | | ????????????????????# """" #??????????????? | | ???????????????????? """" ##??????????????? | | ???????????????????# """ #???????????????? | | ???????????????????#???? #???????????????? | | ???????????????????????? ???????????????? | | ???????????????????????? ???????????????? | | ?????????????????????????? #???????????????? | | ??????????????????????????##????????????????? | | ????????????????????????????????????????????? | | ????????????????????????????????????????????? | | ????????????????????????????????????????????? | | ????????????????????????????????????????????? | | ????????????????????????????????????????????? | | ????????????????????????????????????????????? | | ????????????????????????????????????????????? | +----------------------------------------------------+ Best States ------------- Heat Dissipation 25 Energy Generation 10 Energy Capacity 250 Matter Stores 300 Matter Capacity 300 Sight Range 16 Terrain Scan Density 10 Core Shielding 20 Evasion (%) 40 Recoil Reduction 2 Item Schematics ----------------- None Robot Schematics ------------------ None Fabricated ------------ Nothing Repaired ---------- Nothing Studied --------- None Alien Tech Used ----------------- None Achievements -------------- None Challenges ------------ None Game ------ Seed GammaConstructBattery Manual? 0 Play Time 00:09:49 Cumulative 59.7 hours Start 2026.02.10 @ 18:16:20 End 2026.02.10 @ 18:27:42 Sessions 1 Manual Loads 0 Difficulty Rogue Special Mode None Game No. 126 Rogue 126 Adventurer 0 Explorer 0 Win Type - Total 0 Types 0/0/0/0/0/0/0/0/0/0 Lore% 36 Gallery% 31 Achievement% 29 Wizard Run 0 Options --------- Layout 0 ASCII 0 Keyboard 1 Movement Arrows Keybinds 0 Fullscreen 1 Font 18/Smallcaps Map View 38x25 Zoom Use 73% Tactical HUD 1 Map Filters NONE Filters NONE Steam 1 RUN: 47184b47-0706-477f-b468-9e885d3be682